bitfinex/quotes_ETHUSD_20250715
["timestamp","ask_amount","ask_price","bid_price","bid_amount"]
[1752537601277,0.8163,3014.5,3014.4,0.001]
[1752537601871,0.84122759,3014.5,3014.4,0.001]
[1752537605184,5.05692759,3014.5,3014.4,0.001]
[1752537605595,8.3742273,3014.5,3014.4,0.001]
[1752537605799,9.53500217,3014.5,3014.4,0.001]
[1752537606159,9.53500217,3014.5,3013.0,0.001]
[1752537606160,0.7626,3014.1,3013.5,0.7894]
[1752537606372,0.1656,3013.9,3013.5,0.7894]
[1752537606555,3.48389041,3013.6,3013.5,0.7894]
[1752537606774,3.508818,3013.6,3013.5,0.7894]
[1752537607657,0.19052759,3013.6,3013.0,0.1666]
[1752537608054,3.31873091,3013.2,3013.0,0.1666]
[1752537608252,3.31873091,3013.2,3013.1,0.7814]
[1752537608488,0.02492759,3013.2,3013.1,0.7814]
[1752537609337,3.31851065,3013.4,3013.1,0.7814]
[1752537609499,0.02492759,3013.3,3013.1,0.7814]
[1752537609884,3.34333706,3013.5,3013.1,1.53998681]
[1752537610196,3.31852619,3013.4,3013.1,1.53998681]
[1752537610397,3.34356817,3013.3,3013.1,0.7814]
[1752537610774,0.02492759,3013.3,3013.1,0.7814]
[1752537611810,5.05192759,3013.6,3013.3,0.8232]
[1752537613693,5.05192759,3013.6,3013.3,4.14180866]
[1752537613890,5.05192759,3013.6,3013.3,0.8232]
[1752537614109,3.3184672,3013.5,3013.3,0.8232]
[1752537614308,8.51094119,3013.6,3013.3,0.8232]
[1752537615114,5.1926,3013.6,3013.3,0.8232]
[1752537615319,5.21752759,3013.6,3013.3,0.8232]
[1752537615624,8.53581997,3013.6,3013.3,0.8232]
[1752537615839,3.31843582,3013.5,3013.3,0.8232]
[1752537616000,5.1926,3013.6,3013.3,0.8232]
[1752537616185,0.02492759,3013.5,3013.3,0.8232]
[1752537616729,1.21033393,3013.5,3013.1,0.7547]
[1752537616885,1.21033393,3013.5,3013.1,0.001]
[1752537616886,3.31873091,3013.2,3013.1,0.001]
[1752537617085,3.3436585,3013.2,3013.1,0.001]
[1752537618118,8.3726585,3013.2,3013.1,0.001]
[1752537618325,8.34773091,3013.2,3013.1,0.001]
[1752537620446,0.7951,3012.8,3011.9,0.7699]
[1752537620731,3.31983268,3012.2,3011.9,0.7699]
[1752537620889,8.38376027,3012.2,3011.9,0.7699]
[1752537621085,8.35883268,3012.2,3011.9,0.7699]
[1752537623223,8.35883268,3012.2,3011.9,0.001]
[1752537626505,8.78903939,3012.2,3011.9,0.001]
[1752537631552,4.12456335,3011.9,3011.8,0.001]
[1752537631724,9.18749094,3011.9,3011.8,0.001]
[1752537631930,9.16256335,3011.9,3011.8,0.001]
[1752537632142,10.34826581,3011.9,3011.8,0.001]
[1752537634136,9.54286581,3011.9,3011.8,0.001]
[1752537635122,9.54386581,3011.9,3011.8,0.001]
[1752537635455,9.54386581,3011.9,3011.3,0.001]
[1752537635456,3.32071461,3011.4,3011.3,0.001]
[1752537635657,9.12926479,3011.4,3011.3,0.001]
[1752537635861,9.1043372,3011.4,3011.3,0.001]
[1752537636358,4.0673372,3011.4,3011.3,0.001]
[1752537636560,9.13226479,3011.4,3011.3,1e-08]
[1752537636720,9.1073372,3011.4,3011.3,1e-08]
[1752537639163,9.1073372,3011.4,3011.2,1e-08]
[1752537639164,3.48642489,3011.3,3011.2,1e-08]
[1752537639385,12.68546585,3011.3,3011.2,1e-08]
[1752537639569,12.66053826,3011.3,3011.2,1e-08]
[1752537641089,13.21053826,3011.3,3011.2,1e-08]
[1752537643355,4.09685576,3011.0,3010.8,0.001]
[1752537643657,9.56946893,3011.0,3010.9,1e-08]
[1752537643871,9.54454134,3011.0,3010.9,1e-08]
[1752537646290,19.54454134,3011.0,3010.9,1e-08]
[1752537648707,20.09454134,3011.0,3010.9,1e-08]
[1752537649271,3.32159702,3010.6,3010.1,0.04]
[1752537649477,8.38352461,3010.6,3010.1,0.04]
[1752537649786,8.35859702,3010.6,3010.1,0.04]
[1752537649970,18.35859702,3010.6,3010.1,0.04]
[1752537653531,0.40968558,3011.0,3010.5,0.7873]
[1752537653696,0.8,3011.2,3010.5,0.7873]
[1752537653697,3.32159702,3010.6,3010.5,0.7873]
[1752537653896,8.38652461,3010.6,3010.5,0.7873]
[1752537654120,8.36159702,3010.6,3010.5,0.7873]
[1752537655242,8.36159702,3010.6,3010.5,0.001]
[1752537655596,8.36759702,3010.6,3010.5,0.001]
[1752537656024,3.48710676,3010.7,3010.5,0.001]
[1752537656338,0.02492759,3010.6,3010.5,0.001]
[1752537656629,0.02492759,3010.6,3010.5,0.8155]
[1752537656793,5.07192759,3010.6,3010.5,0.8155]
[1752537657295,8.39352461,3010.6,3010.5,0.8155]
[1752537657502,8.36859702,3010.6,3010.5,0.8155]
[1752537657837,9.55416544,3010.6,3010.5,0.001]
[1752537660530,10.33326544,3010.6,3010.5,0.001]
[1752537661540,4.50716544,3010.6,3010.5,0.001]
[1752537661735,9.57909303,3010.6,3010.5,0.001]
[1752537661950,9.55416544,3010.6,3010.5,0.001]
[1752537666178,4.50716544,3010.6,3010.5,0.001]
[1752537666350,8.39252461,3010.6,3010.5,0.001]
[1752537666555,8.36759702,3010.6,3010.5,0.001]
[1752537668183,3.32159702,3010.6,3010.5,0.001]
[1752537668346,8.39252461,3010.6,3010.5,0.001]
[1752537668540,8.36759702,3010.6,3010.5,0.001]
[1752537668744,3.32159702,3010.6,3010.5,0.001]
[1752537668957,8.36659702,3010.6,3010.5,0.001]
[1752537671087,9.55216597,3010.6,3010.5,0.001]
[1752537673561,8.36659702,3010.6,3010.5,0.001]
[1752537673888,8.36559702,3010.6,3010.5,0.8315]
[1752537674087,3.32159702,3010.6,3010.5,0.8315]
[1752537674292,8.39052461,3010.6,3010.5,0.8315]
[1752537674502,8.36559702,3010.6,3010.5,0.8315]
[1752537675049,0.1656,3010.7,3010.5,0.8315]
[1752537675276,5.044,3010.6,3010.5,0.8315]
[1752537676089,0.19052759,3010.7,3010.5,0.8315]
[1752537676284,5.044,3010.6,3010.5,0.8315]
[1752537678909,11.45903161,3010.8,3010.5,0.8315]
[1752537679089,5.042,3010.7,3010.5,0.8315]
[1752537679513,8.1376,3010.8,3010.6,3.3215041]
[1752537679715,7.972,3010.8,3010.7,1.40490041]
[1752537680009,13.016,3010.8,3010.7,1.40490041]
[1752537681231,7.972,3010.8,3010.7,1.40490041]
[1752537681438,16.33637637,3010.8,3010.7,0.9896]
[1752537681728,16.33637637,3010.8,3010.7,0.824]
[1752537685071,3.32159702,3010.6,3010.5,0.001]
[1752537685314,8.38852461,3010.6,3010.5,0.001]
[1752537685511,8.36359702,3010.6,3010.5,0.001]
[1752537687084,5.042,3010.6,3010.5,0.001]
[1752537689316,8.38852461,3010.6,3010.5,0.001]
[1752537689479,5.042,3010.6,3010.5,0.001]
[1752537690182,8.36359702,3010.6,3010.5,0.001]
[1752537695124,8.52919702,3010.6,3010.5,0.001]
[1752537697926,5.036,3010.6,3010.5,0.7783]
[1752537698093,5.036,3010.6,3010.5,0.9439]
[1752537699940,8.35759702,3010.6,3010.5,0.9439]
[1752537700614,8.35759702,3010.6,3010.5,0.001]
[1752537700830,9.5257063,3010.6,3010.5,0.001]
[1752537709122,10.3538063,3010.6,3010.5,0.001]
[1752537711680,5.3178063,3010.6,3010.5,0.001]
[1752537711891,0.02492759,3010.6,3010.5,0.001]
[1752537712198,7.97,3010.7,3010.5,0.7946]
[1752537712332,5.035,3010.6,3010.5,0.9602]
[1752537713870,5.035,3010.6,3010.5,4.28190735]
[1752537714461,5.035,3010.6,3010.5,0.9602]
[1752537716019,0.002,3010.8,3010.6,3.32155712]
[1752537716184,5.034,3010.7,3010.6,3.32155712]
[1752537716385,5.034,3010.7,3010.6,4.11225712]
[1752537716899,0.002,3010.8,3010.7,3.32148669]
[1752537717198,5.036,3010.8,3010.7,3.48708669]
[1752537718753,0.002,3010.8,3010.7,3.48708669]
[1752537719012,5.036,3010.8,3010.7,4.27778669]
[1752537719181,5.036,3010.8,3010.7,5.11715265]
[1752537720088,0.002,3010.8,3010.7,5.11715265]
[1752537720285,5.035,3010.8,3010.7,5.15036751]
[1752537720501,5.035,3010.8,3010.7,5.11715265]
[1752537722430,5.035,3010.8,3010.7,1.79566596]
[1752537722611,5.035,3010.8,3010.7,0.9563]
[1752537723352,5.035,3010.8,3010.7,4.27778669]
[1752537723576,0.002,3010.8,3010.7,4.27778669]
[1752537723708,0.002,3010.8,3010.7,4.31100155]
[1752537723913,5.035,3010.8,3010.7,4.31100155]
[1752537724150,5.035,3010.8,3010.7,5.07436064]
[1752537724953,5.035,3010.8,3010.7,5.04114578]
[1752537728851,0.002,3010.8,3010.7,15.04114578]
[1752537736835,0.002,3010.8,3010.7,0.92895909]
[1752537737161,0.002,3010.8,3010.7,0.1656]
[1752537737664,0.002,3010.8,3010.7,3.48708669]
[1752537741470,0.002,3010.8,3010.7,3.52030155]
[1752537746281,0.002,3010.8,3010.7,0.1656]
[1752537747278,0.002,3010.8,3010.7,3.48708669]
[1752537747487,0.002,3010.8,3010.7,4.27744447]
[1752537749442,5.03,3010.8,3010.7,4.27744447]
[1752537749642,5.03,3010.8,3010.7,4.24422961]
[1752537750189,0.002,3010.8,3010.7,15.06624447]
[1752537750368,7.97,3011.5,3011.4,3.32071461]
[1752537750684,13.0,3011.5,3011.4,3.48631461]
[1752537751859,13.0,3011.5,3011.4,0.1656]
[1752537753179,5.03,3011.5,3011.4,0.1656]
[1752537757587,3.32077881,3011.4,3011.3,0.1656]
[1752537757795,1.26773718,3011.4,3011.0,3.3211122]
[1752537757990,3.3207248,3011.4,3011.1,0.1656]
[1752537758300,3.34565239,3011.4,3011.1,0.1656]
[1752537758484,0.02492759,3011.4,3011.1,0.1656]
[1752537759197,5.7868,3011.5,3011.1,0.1656]
[1752537759397,5.7868,3011.5,3011.1,3.48661994]
[1752537760120,5.7868,3011.5,3011.1,3.73600239]
[1752537760292,9.10741768,3011.5,3011.1,0.41498245]
[1752537760490,5.7868,3011.5,3011.1,3.73601125]
[1752537760692,0.7568,3011.5,3011.1,3.73594912]
[1752537760896,5.03,3011.4,3011.1,3.73594912]
[1752537761619,5.03,3011.4,3011.1,0.41498245]
[1752537763139,8.35079023,3011.4,3011.1,0.41498245]
[1752537764297,3.34581375,3011.3,3011.1,0.1656]
[1752537765033,3.32105588,3011.1,3010.6,3.32254505]
[1752537765334,5.028,3011.0,3010.9,0.1656]
[1752537766653,5.028,3011.0,3010.9,0.41002743]
[1752537768097,3.32148669,3010.7,3010.6,0.001]
[1752537768301,9.56206536,3010.7,3010.6,0.001]
[1752537768524,6.24057867,3010.7,3010.6,0.001]
[1752537768694,0.8013,3010.7,3010.6,0.001]
[1752537769339,5.8303,3010.7,3010.6,0.001]
[1752537769834,9.15178669,3010.7,3010.6,0.001]
[1752537770127,5.8303,3010.7,3010.6,0.001]
[1752537771621,0.9732,3010.9,3010.6,0.001]
[1752537771793,5.028,3010.8,3010.6,0.001]
[1752537771993,5.028,3010.8,3010.6,0.1666]
[1752537772795,5.029,3010.7,3010.6,3.48819702]
[1752537773441,5.029,3010.7,3010.6,0.1666]
[1752537778512,5.029,3010.7,3010.6,3.48819702]
[1752537780136,5.029,3010.7,3010.6,0.1666]
[1752537780453,5.029,3010.7,3010.6,3.48819702]
[1752537780654,5.026,3010.7,3010.6,3.48819702]
[1752537780861,5.026,3010.7,3010.6,0.1666]
[1752537784466,0.1676,3011.2,3010.7,0.7951]
[1752537784674,0.002,3011.2,3011.1,3.32104546]
[1752537784837,5.028,3011.2,3011.1,3.48664546]
[1752537785038,5.028,3011.2,3011.1,4.28174546]
[1752537785234,5.028,3011.2,3011.1,5.04203522]
[1752537789756,5.028,3011.2,3011.1,1.72098976]
[1752537789998,5.028,3011.2,3011.1,0.1656]
[1752537797697,5.027,3011.2,3011.1,0.1656]
[1752537801479,5.027,3011.2,3011.1,3.48664546]
[1752537801685,5.027,3011.2,3011.1,0.1656]
[1752537802698,0.002,3011.2,3011.1,0.1656]
[1752537802918,5.027,3011.2,3011.1,3.48664546]
[1752537803212,5.027,3011.2,3011.1,0.1656]
[1752537804780,5.027,3011.2,3011.1,3.83531647]
[1752537804979,5.027,3011.2,3011.1,4.63891647]
[1752537805370,0.002,3011.2,3011.1,4.63891647]
[1752537805572,0.002,3011.2,3011.1,4.67212692]
[1752537805773,5.027,3011.2,3011.1,4.67212692]
[1752537807884,5.027,3011.2,3011.1,4.63891647]
[1752537808079,5.027,3011.2,3011.1,4.29024546]
[1752537808284,5.027,3011.2,3011.1,0.1656]
[1752537808493,5.8023,3011.2,3011.1,0.1656]
[1752537809816,9.12323517,3011.2,3011.1,0.1656]
[1752537809993,3.32105156,3011.1,3010.9,4.9256]
[1752537810715,9.12327193,3011.2,3010.9,4.9256]
[1752537811115,0.02492759,3011.1,3010.9,4.9256]
[1752537811719,0.02492759,3011.1,3010.9,0.1656]
[1752537812415,3.3459902,3011.1,3010.9,0.1656]
[1752537812578,3.32115576,3011.0,3010.9,0.1656]
[1752537812776,3.32115576,3011.0,3010.7,0.1656]
[1752537812987,5.04992759,3010.9,3010.7,0.1656]
[1752537813605,5.025,3010.9,3010.7,0.1656]
[1752537818214,5.025,3010.9,3010.7,3.48702854]
[1752537819228,5.025,3010.9,3010.7,0.1656]
[1752537819431,5.025,3010.9,3010.8,4.13297637]
[1752537819608,5.025,3010.9,3010.8,5.04744379]
[1752537820634,0.002,3011.1,3011.0,3.32115576]
[1752537820930,0.002,3011.1,3011.0,3.35436731]
[1752537821128,5.028,3011.1,3011.0,3.32115576]
[1752537821295,5.028,3011.1,3011.0,3.48675576]
[1752537821496,5.028,3011.1,3011.0,4.3236042]
[1752537825839,5.028,3011.1,3011.0,1.00244844]
[1752537826201,5.028,3011.1,3011.0,4.3236042]
[1752537827138,5.028,3011.1,3011.0,1.00244844]
[1752537827299,5.028,3011.1,3011.0,0.1656]
[1752537830324,0.002,3011.1,3011.0,0.1656]
[1752537830651,5.027,3011.1,3011.0,0.1656]
[1752537833366,0.002,3011.1,3011.0,0.1656]
[1752537833666,5.027,3011.1,3011.0,0.1656]
[1752537836067,8.34804546,3011.1,3011.0,0.1656]
[1752537836938,9.59075541,3011.1,3011.0,0.1656]
[1752537837274,6.26970995,3011.1,3011.0,0.1656]
[1752537837459,5.027,3011.1,3011.0,0.1656]
[1752537839165,8.34804546,3011.1,3011.0,0.1656]
[1752537840042,9.11084546,3011.1,3011.0,0.1656]
[1752537840572,9.11084546,3011.1,3010.6,0.001]
[1752537840573,3.32129142,3010.9,3010.6,0.001]
[1752537840773,5.025,3010.8,3010.7,0.1656]
[1752537841376,8.37130396,3010.8,3010.7,0.1656]
[1752537841590,4.08488669,3010.7,3010.6,0.001]
[1752537842957,4.10981428,3010.7,3010.6,0.001]
[1752537846846,9.10988669,3010.7,3010.6,0.001]
[1752537848463,3.48705424,3010.8,3010.6,0.001]
[1752537848672,5.026,3010.7,3010.6,0.8125]
[1752537848876,5.026,3010.7,3010.6,0.9781]
[1752537849799,5.026,3010.7,3010.6,0.1666]
[1752537849961,8.34748669,3010.7,3010.6,0.1666]
[1752537850992,8.34748669,3010.7,3010.6,0.001]
[1752537851192,9.61202378,3010.7,3010.6,0.001]
[1752537853397,8.34748669,3010.7,3010.6,0.001]
[1752537857701,8.51308669,3010.7,3010.6,0.001]
[1752537871325,9.26708669,3010.7,3010.6,0.001]
[1752537871619,19.26708669,3010.7,3010.6,0.001]
[1752537873301,19.81708669,3010.7,3010.6,0.001]
[1752537873487,22.13093378,3010.7,3010.6,0.001]
[1752537879300,13.3220384,3010.2,3010.1,0.04]
[1752537879636,19.1367384,3010.2,3010.1,0.04]
[1752537882834,13.32225913,3010.0,3009.9,0.001]
[1752537883038,27.58575717,3010.0,3009.9,0.001]
[1752537885357,13.32236951,3009.9,3009.8,0.001]
[1752537885568,13.32236951,3009.9,3009.5,0.001]
[1752537885569,13.32247989,3009.8,3009.5,0.001]
[1752537885720,13.32281109,3009.5,3009.4,0.001]
[1752537886064,18.34981109,3009.5,3009.4,0.001]
[1752537890269,18.51541109,3009.5,3009.4,0.001]
[1752537892044,13.48841109,3009.5,3009.4,0.001]
[1752537892364,18.51541109,3009.5,3009.4,0.001]
[1752537892719,0.1656,3009.5,3009.4,0.8208]
[1752537892923,5.027,3009.5,3009.4,1.23538664]
[1752537893125,5.05192759,3009.5,3009.4,0.8208]
[1752537893540,8.37473868,3009.5,3009.4,0.8208]
[1752537893735,8.34981109,3009.5,3009.4,0.8208]
[1752537893967,3.32281109,3009.5,3009.4,0.8208]
[1752537894122,8.34981109,3009.5,3009.4,0.8208]
[1752537894325,5.027,3009.5,3009.4,0.8208]
[1752537894969,3.32263878,3009.7,3009.4,0.8208]
[1752537895139,5.05192759,3009.6,3009.4,0.8208]
[1752537895365,8.37465264,3009.6,3009.4,0.8208]
[1752537895590,8.34972505,3009.6,3009.4,0.8208]
[1752537895794,0.02492759,3009.5,3009.4,0.8208]
[1752537896555,3.34773868,3009.5,3009.4,0.8208]
[1752537896898,0.02492759,3009.5,3009.4,0.8208]
[1752537898472,5.05192759,3009.5,3009.4,0.8208]
[1752537900097,8.37473868,3009.5,3009.4,0.8208]
[1752537900269,3.48811121,3009.8,3009.4,0.8208]
[1752537900476,8.3745923,3009.7,3009.4,0.8208]
[1752537900678,3.3227115,3009.6,3009.4,0.8208]
[1752537900988,5.05192759,3009.5,3009.4,0.8208]
[1752537901194,8.37473868,3009.5,3009.4,0.8208]
[1752537901500,8.34981109,3009.5,3009.4,0.001]
[1752537902083,9.51706242,3009.5,3009.4,0.001]
[1752537904670,10.32966242,3009.5,3009.4,0.001]
[1752537905342,3.32279683,3009.6,3009.4,0.001]
[1752537905620,8.37473868,3009.5,3009.4,0.001]
[1752537905771,8.34981109,3009.5,3009.4,0.001]
[1752537914190,3.32281109,3009.5,3009.4,0.001]
[1752537914357,8.37473868,3009.5,3009.4,0.001]
[1752537914691,8.51541109,3009.5,3009.4,0.001]
[1752537917311,9.78048316,3009.5,3009.4,0.001]
[1752537920026,20.53068316,3009.5,3009.4,0.001]
[1752537923927,15.50368316,3009.5,3009.4,0.001]
[1752537924090,20.53068316,3009.5,3009.4,0.001]
[1752537926336,18.51541109,3009.5,3009.4,0.001]
[1752537931323,19.27871109,3009.5,3009.4,0.001]
[1752537932025,10.8012,3009.3,3009.1,1e-08]
[1752537932249,19.72726995,3009.2,3009.1,1e-08]
[1752537932457,13.32347369,3008.9,3008.3,0.001]
[1752537932764,3.32391557,3008.5,3008.3,0.001]
[1752537932947,8.37584316,3008.5,3008.3,0.001]
[1752537933154,8.35091557,3008.5,3008.3,0.001]
[1752537937392,9.1607337,3008.5,3008.3,0.001]
[1752537938660,0.55,3008.1,3007.1,0.04]
[1752537938867,0.1656,3007.7,3007.2,0.7812]
[1752537939047,3.32415135,3008.3,3007.4,4.11053134]
[1752537939266,5.056,3008.2,3007.8,0.1656]
[1752537939440,5.056,3008.2,3007.9,0.7854]
[1752537939642,3.32435756,3008.1,3007.9,0.7854]
[1752537939850,5.056,3008.0,3007.9,0.7854]
[1752537943404,0.1656,3008.4,3007.9,1.21296859]
[1752537943605,5.054,3008.3,3007.9,1.37856859]
[1752537944009,8.37814039,3008.3,3007.9,1.37856859]
[1752537944167,3.32435756,3008.1,3007.9,0.951]
[1752537944374,5.054,3008.0,3007.9,0.951]
[1752537949511,8.37846808,3008.0,3007.9,0.951]
[1752537949877,8.37846808,3008.0,3007.9,0.1656]
[1752537950513,3.32477023,3007.8,3007.6,0.8035]
[1752537950713,8.37579968,3007.7,3007.6,0.9691]
[1752537953608,5.051,3007.7,3007.6,0.9691]
[1752537953805,5.051,3007.7,3007.6,4.29401022]
[1752537954310,5.051,3007.7,3007.6,0.9691]
[1752537954789,5.051,3007.7,3007.6,0.1656]
[1752537955435,3.32419155,3008.3,3007.7,3.32470654]
[1752537955644,5.07492759,3008.2,3007.9,0.1656]
[1752537956340,5.07492759,3008.2,3007.9,0.9308]
[1752537957128,3.32437052,3008.1,3007.9,0.9308]
[1752537957333,5.052,3008.0,3007.9,0.9308]
[1752537958317,8.37646808,3008.0,3007.9,0.1656]
[1752537958842,5.052,3008.0,3007.9,0.1656]
[1752537959243,8.40139567,3008.0,3007.9,0.1656]
[1752537959419,8.37646808,3008.0,3007.9,0.1656]
[1752537959618,9.54654382,3008.0,3007.9,0.1656]
[1752537959803,6.22207574,3008.0,3007.9,0.1656]
[1752537960205,0.9241,3008.4,3007.9,0.1656]
[1752537960406,0.02492759,3008.3,3007.9,0.1656]
[1752537960649,5.05,3008.2,3007.8,3.3246261]
[1752537960849,5.05,3008.2,3008.1,0.1656]
[1752537961049,3.32386466,3008.6,3008.1,4.31369264]
[1752537961249,0.35731406,3008.5,3008.1,0.9894]
[1752537961495,0.02492759,3009.0,3008.6,0.8095]
[1752537961783,5.051,3008.9,3008.6,0.8095]
[1752537962100,7.975,3009.2,3008.8,0.1656]
[1752537962390,7.975,3009.2,3009.1,3.32325279]
[1752537962684,13.029,3009.2,3009.1,3.48885279]
[1752537964322,0.04,3009.9,3009.5,3.32280997]
[1752537964490,0.04,3009.9,3009.8,0.7738]
[1752537964693,5.094,3009.9,3009.8,4.26187989]
[1752537965204,5.094,3009.9,3009.8,0.9394]
[1752537965404,0.04,3009.9,3009.8,0.9394]
[1752537965626,5.093,3009.9,3009.8,0.9394]
[1752537966375,8.41536951,3009.9,3009.8,0.1656]
[1752537966619,9.58933242,3009.9,3009.8,0.1656]
[1752537966921,8.41536951,3009.9,3009.8,0.1656]
[1752537967217,3.32283678,3009.5,3009.3,0.8014]
[1752537967519,8.37792151,3009.4,3009.3,0.8014]
[1752537967917,5.055,3009.4,3009.3,0.967]
[1752537968710,5.055,3009.4,3009.3,4.29003193]
[1752537968910,5.055,3009.4,3009.3,1.73164971]
[1752537969109,5.053,3009.4,3009.3,4.29001427]
[1752537970936,0.06692759,3009.9,3008.9,1.06619351]
[1752537971136,0.06692759,3009.9,3009.1,4.14023025]
[1752537971137,0.042,3009.9,3009.1,4.14023025]
[1752537971339,5.065,3009.8,3009.7,0.8178]
[1752537972429,0.042,3009.9,3009.7,0.8178]
[1752537972630,5.065,3009.8,3009.7,0.8178]
[1752537973330,5.064,3009.8,3009.7,0.8178]
[1752537979019,5.064,3009.8,3009.6,0.24807225]
[1752537979217,5.064,3009.8,3009.5,0.7534]
[1752537979832,5.064,3009.8,3009.5,1.0011039]
[1752537980746,5.064,3009.8,3009.7,0.1656]
[1752537981358,5.064,3009.8,3009.7,3.48819029]
[1752537982545,5.064,3009.8,3009.7,9.20904084]
[1752537984350,0.042,3009.9,3009.8,4.07587989]
[1752537984519,5.098,3009.9,3009.8,4.10910468]
[1752537984846,0.042,3009.9,3009.8,4.07587989]
[1752537985049,0.042,3009.9,3009.8,4.10910468]
[1752537985345,5.099,3009.9,3009.8,4.10910468]
[1752537985554,5.099,3009.9,3009.8,5.90851842]
[1752537986664,5.099,3009.9,3009.8,5.87529363]
[1752537987495,5.099,3009.9,3009.8,3.32247989]
[1752537987676,5.099,3009.9,3009.7,13.4881275]
[1752537989252,5.099,3009.9,3009.8,3.07367989]
[1752537990149,0.042,3009.9,3009.8,3.07367989]
[1752537990389,5.098,3009.9,3009.8,3.93260468]
[1752537990565,5.098,3009.9,3009.8,6.72276295]
[1752537990788,5.098,3009.9,3009.8,6.68953816]
[1752537992172,0.042,3009.9,3009.8,21.44953816]
[1752537992509,0.042,3009.9,3009.8,17.23953816]
[1752537994114,0.042,3009.9,3009.8,16.68953816]
[1752537994316,0.042,3009.9,3009.8,13.89937989]
[1752537997011,0.042,3009.9,3009.8,14.44937989]
[1752537998091,0.042,3009.9,3009.8,19.20937989]
[1752537999303,0.042,3009.9,3009.8,18.65937989]
[1752538004732,0.042,3009.9,3009.6,4.76]
[1752538005091,0.042,3009.9,3009.6,8.08266934]
[1752538005290,0.042,3009.9,3009.8,3.32247989]
[1752538011447,0.042,3009.9,3009.8,3.32347989]
[1752538014760,0.042,3009.9,3009.8,3.48907989]
[1752538015566,0.042,3009.9,3009.8,0.1666]
[1752538017004,1.23044468,3009.9,3009.8,0.1666]
[1752538017329,4.55281419,3009.9,3009.8,0.1666]
[1752538019069,1.23044468,3009.9,3009.8,0.1666]
[1752538019445,4.55281419,3009.9,3009.8,0.1666]
[1752538019654,1.23044468,3009.9,3009.8,0.1666]
[1752538020368,0.89132759,3009.9,3009.8,0.1666]
[1752538021933,0.042,3009.9,3009.8,3.48907989]
[1752538022276,5.093,3009.9,3009.8,3.48907989]
[1752538023033,5.8655,3009.9,3009.8,0.1666]
[1752538023570,5.89042759,3009.9,3009.8,0.001]
[1752538023751,9.80203986,3009.9,3009.8,0.001]
[1752538024071,9.77711227,3009.9,3009.8,0.001]
[1752538028097,6.45474276,3009.9,3009.8,0.001]
[1752538028315,5.8655,3009.9,3009.8,0.001]
[1752538028588,9.2127971,3009.9,3009.8,0.001]
[1752538028786,9.18786951,3009.9,3009.8,0.001]
[1752538028986,5.8655,3009.9,3009.8,0.001]
[1752538029154,5.89042759,3009.9,3009.8,0.001]
[1752538029354,9.2127971,3009.9,3009.8,0.001]
[1752538029560,10.10934232,3009.9,3009.8,0.001]
[1752538031893,6.78697281,3009.9,3009.8,0.001]
[1752538032488,10.10934232,3009.9,3009.8,0.001]
[1752538032991,6.78697281,3009.9,3009.8,0.001]
[1752538033200,10.10934232,3009.9,3009.8,0.001]
[1752538033496,6.78697281,3009.9,3009.8,0.001]
[1752538033702,10.10934232,3009.9,3009.8,0.001]
[1752538036382,10.65934232,3009.9,3009.8,0.001]
[1752538037988,20.65934232,3009.9,3009.8,0.001]
[1752538049101,15.05834232,3009.9,3009.8,0.001]
[1752538049306,19.34746951,3009.9,3009.8,0.001]
[1752538051219,19.89746951,3009.9,3009.8,0.001]
[1752538051983,21.89046951,3009.9,3009.8,1e-08]
[1752538052533,25.38746951,3009.9,3009.8,1e-08]
[1752538052898,25.55115482,3009.9,3009.8,1e-08]
[1752538053524,25.38746951,3009.9,3009.8,1e-08]
[1752538054725,26.10232172,3009.9,3009.8,1e-08]
[1752538055892,22.60532172,3009.9,3009.8,1e-08]
[1752538056087,3.32380509,3008.6,3008.5,0.001]
[1752538056295,8.39873268,3008.6,3008.5,0.001]
[1752538056591,8.37380509,3008.6,3008.5,0.001]
[1752538057524,9.62340576,3008.6,3008.5,0.001]
[1752538057823,19.62340576,3008.6,3008.5,0.001]
[1752538059136,20.37770576,3008.6,3008.5,0.001]
[1752538062658,15.32770576,3008.6,3008.5,0.001]
[1752538062862,19.62440576,3008.6,3008.5,0.001]
[1752538063025,15.36320576,3008.6,3008.5,0.001]
[1752538063224,18.37480509,3008.6,3008.5,0.001]
[1752538063824,8.37680509,3008.6,3008.5,0.001]
[1752538068999,3.32380509,3008.6,3008.5,0.001]
[1752538069134,8.40173268,3008.6,3008.5,0.001]
[1752538069333,8.37680509,3008.6,3008.5,0.001]
[1752538078209,3.32380509,3008.6,3008.5,0.001]
[1752538078364,0.02492759,3008.6,3008.5,0.8312]
[1752538078564,5.07292759,3008.6,3008.5,0.8312]
[1752538078759,18.7936,3009.1,3008.5,1.2632926]
[1752538078760,7.973,3009.1,3008.5,1.2632926]
[1752538079074,7.973,3009.1,3008.7,3.32367814]
[1752538079075,0.02492759,3009.0,3008.7,3.32367814]
[1752538079384,5.05,3008.9,3008.8,0.1656]
[1752538080174,0.02492759,3009.0,3008.9,3.32347369]
[1752538080377,5.05,3009.0,3008.9,4.15627369]
[1752538080577,5.05,3009.0,3008.9,0.8328]
[1752538081096,5.07492759,3009.0,3008.9,0.8328]
[1752538082796,5.05,3009.0,3008.9,4.15627369]
[1752538083532,7.973,3009.1,3009.0,3.32336324]
[1752538083709,13.021,3009.1,3009.0,4.14466324]
[1752538084030,13.021,3009.1,3009.0,4.31026324]
[1752538084754,7.973,3009.1,3009.0,4.31026324]
[1752538084898,13.022,3009.1,3009.0,5.15009163]